bitfinex-derivatives/quotes_ETHF0:USTF0_20251211
["timestamp","ask_amount","ask_price","bid_price","bid_amount"]
[1765433079756,5.37121791,3208.9,3208.8,2.4341]
[1765433080054,5.37121791,3208.9,3208.8,3.57431558]
[1765433081153,5.37121791,3208.9,3208.8,2.4341]
[1765433081453,5.37121791,3208.9,3208.8,3.57431558]
[1765433082861,5.37121791,3208.9,3208.8,2.43461558]
[1765433083063,5.37121791,3208.9,3208.8,0.1558]
[1765433085561,6.51143349,3208.9,3208.8,0.1558]
[1765433085764,2.1612,3208.2,3208.1,3.41851558]
[1765433086566,2.1612,3208.2,3208.1,3.57435558]
[1765433086869,1.0886,3208.5,3208.4,2.43412]
[1765433087070,2.1612,3208.5,3208.4,3.57433558]
[1765433089764,1.0886,3208.5,3208.4,3.57433558]
[1765433090767,2.1612,3208.5,3208.4,3.57433558]
[1765433092174,2.8128,3208.5,3208.4,1.29603558]
[1765433092372,2.8128,3208.5,3208.4,0.15582]
[1765433093670,2.8128,3208.5,3208.4,1.29442]
[1765433093867,2.8128,3208.5,3208.4,3.57433558]
[1765433093868,2.1612,3208.5,3208.4,3.57433558]
[1765433094177,1.0886,3208.5,3208.4,3.57433558]
[1765433095072,5.369,3208.8,3208.7,2.43411]
[1765433095284,5.369,3208.8,3208.7,3.57432558]
[1765433095788,5.369,3208.8,3208.7,2.43462558]
[1765433096281,5.369,3208.8,3208.7,3.57432558]
[1765433097182,2.1612,3208.8,3208.7,3.57432558]
[1765433099280,1.0886,3208.8,3208.7,3.57432558]
[1765433099687,2.0823,3208.8,3208.7,3.57432558]
[1765433100085,2.0823,3208.8,3208.7,1.29441]
[1765433100284,2.0823,3208.8,3208.7,0.15581]
[1765433102593,2.0823,3208.8,3208.0,0.67757143]
[1765433102594,2.0457,3208.1,3208.0,2.13031143]
[1765433103193,2.0457,3208.1,3208.0,1.14361143]
[1765433107096,2.0457,3208.1,3208.0,2.13031143]
[1765433107289,4.2598,3208.6,3208.5,2.71832]
[1765433107696,3.2078,3208.6,3208.5,2.71832]
[1765433109097,4.2598,3208.6,3208.5,2.71832]
[1765433109300,5.2535,3208.6,3208.5,2.12562]
[1765433109692,5.2535,3208.6,3208.5,0.15582]
[1765433109998,5.2535,3208.6,3208.5,1.13892]
[1765433111600,5.2535,3208.6,3208.5,2.12562]
[1765433112001,4.2598,3208.6,3208.5,2.73502]
[1765433112202,2.04541791,3208.9,3208.8,2.0688]
[1765433112391,2.04541791,3208.9,3208.8,3.17956721]
[1765433114997,2.04541791,3208.9,3208.8,2.22576721]
[1765433115304,2.04541791,3208.9,3208.8,1.115]
[1765433116205,2.04541791,3208.9,3208.8,2.0688]
[1765433117206,1.03831791,3208.9,3208.8,2.0688]
[1765433120696,1.03831791,3208.9,3208.8,0.1558]
[1765433120697,2.04541791,3208.9,3208.8,0.1558]
[1765433123305,2.04541791,3208.9,3208.8,1.115]
[1765433123810,2.04541791,3208.9,3208.8,2.0688]
[1765433124110,1.03831791,3208.9,3208.8,2.0688]
[1765433124803,2.04541791,3208.9,3208.8,2.0688]
[1765433125199,0.00221791,3208.9,3208.8,2.0688]
[1765433125400,3.2078,3209.4,3209.3,2.06878]
[1765433125609,3.2078,3209.4,3209.3,3.17954721]
[1765433125906,4.2439,3209.4,3209.3,3.17954721]
[1765433126301,4.24749328,3209.4,3209.3,3.18259644]
[1765433126507,3.21139328,3209.4,3209.3,3.18259644]
[1765433130412,5.15429328,3209.4,3209.3,3.18259644]
[1765433132109,1.94649328,3209.4,3209.3,3.18259644]
[1765433134110,0.00359328,3209.4,3209.3,3.18259644]
[1765433134707,0.94059328,3209.4,3209.3,3.18259644]
[1765433134908,1.84739328,3209.4,3209.3,3.18259644]
[1765433135406,0.94059328,3209.4,3209.3,3.18259644]
[1765433138404,0.00359328,3209.4,3209.3,3.18259644]
[1765433138817,0.94059328,3209.4,3209.3,3.18259644]
[1765433139916,1.84739328,3209.4,3209.3,3.18259644]
[1765433141115,0.94059328,3209.4,3209.3,3.18259644]
[1765433141517,1.84739328,3209.4,3209.3,3.18259644]
[1765433142716,0.94059328,3209.4,3209.3,3.18259644]
[1765433143318,0.00359328,3209.4,3209.3,3.18259644]
[1765433144812,0.94059328,3209.4,3209.3,3.18259644]
[1765433145724,0.00359328,3209.4,3209.3,3.18259644]
[1765433146322,3.2078,3210.1,3210.0,2.4375]
[1765433146518,3.2078,3210.1,3210.0,3.54826721]
[1765433146824,5.0516,3210.1,3210.0,0.8874]
[1765433147126,5.05468981,3210.1,3210.0,0.8874]
[1765433147518,5.05468981,3210.1,3210.0,1.04315]
[1765433148019,5.05468981,3210.1,3210.0,0.15575]
[1765433150025,11.05468981,3210.1,3210.0,0.15575]
[1765433150628,1.8438,3209.8,3209.7,0.00467143]
[1765433151622,1.8438,3209.8,3209.7,0.16043143]
[1765433160829,1.7177,3209.4,3209.3,0.00304923]
[1765433161029,2.8564617,3209.4,3209.2,0.15578]
[1765433161229,1.7177,3209.3,3209.2,0.15578]
[1765433161629,1.7177,3208.9,3208.8,3.3636]
[1765433162131,1.7177,3208.9,3208.8,3.36635326]
[1765433163230,1.7177,3208.9,3208.8,4.21575326]
[1765433163429,1.7177,3208.9,3208.8,5.06065326]
[1765433164833,1.7177,3208.9,3208.8,0.15855326]
[1765433166237,1.7177,3208.6,3208.5,0.00467143]
[1765433167134,1.7177,3208.6,3208.5,0.16049143]
[1765433167333,1.7177,3208.6,3208.5,0.16327803]
[1765433168536,1.7177,3208.6,3208.5,1.01267803]
[1765433168937,2.8564617,3208.6,3208.5,0.16327803]
[1765433169136,2.8564617,3208.6,3208.1,1.1387617]
[1765433169335,1.7177,3208.2,3208.1,2.1440017]
[1765433169735,1.7177,3208.2,3208.1,2.9889017]
[1765433170037,1.7177,3208.2,3208.1,2.1440017]
[1765433170236,1.7177,3208.2,3208.1,2.99146592]
[1765433172533,1.7177,3208.2,3208.1,1.85270422]
[1765433172734,1.7177,3208.2,3208.1,2.14656592]
[1765433172934,1.7177,3208.2,3208.1,3.01866592]
[1765433174741,2.20307143,3208.5,3208.4,1.90372]
[1765433174942,2.20307143,3208.5,3208.4,1.03162]
[1765433176442,2.20307143,3208.5,3208.4,0.15582]
[1765433180343,2.20307143,3208.5,3208.4,1.03162]
[1765433180540,2.20307143,3208.5,3208.4,0.15582]
[1765433186048,1.6781,3208.2,3208.1,1.14132592]
[1765433186548,1.6781,3208.2,3208.1,2.01712592]
[1765433187351,1.6781,3208.2,3208.1,1.14132592]
[1765433187552,1.6781,3208.2,3208.1,1.29716592]
[1765433188049,1.6781,3207.9,3207.8,3.21247143]
[1765433188250,1.6781,3207.9,3207.8,0.00467143]
[1765433189154,1.6781,3207.9,3207.8,0.0071269]
[1765433189350,1.6781,3207.9,3207.8,0.1629769]
[1765433190754,4.8859,3207.9,3207.8,0.1629769]
[1765433191853,4.8859,3207.9,3207.8,1.3017386]
[1765433192055,4.8429,3208.3,3208.2,0.94143]
[1765433192244,5.9816617,3208.3,3208.2,0.15583]
[1765433192547,1.6351,3207.9,3207.8,0.0071269]
[1765433192748,4.8429,3207.9,3207.8,0.0071269]
[1765433192954,4.8429,3207.9,3207.8,0.1629769]
[1765433193358,4.8429,3207.9,3207.8,1.3017386]
[1765433194156,4.8429,3207.9,3207.8,2.0873386]
[1765433195961,4.8429,3207.9,3207.8,2.9059386]
[1765433196160,4.0302,3207.9,3207.8,2.9059386]
[1765433196554,4.8429,3207.9,3207.8,2.9059386]
[1765433197158,4.0302,3207.9,3207.8,2.9059386]
[1765433197356,0.8224,3207.9,3207.8,2.9059386]
[1765433198657,1.6351,3208.2,3208.1,0.94144]
[1765433198862,1.6351,3208.2,3208.1,2.0802017]
[1765433200360,1.6351,3208.2,3208.1,1.2946017]
[1765433200563,1.6351,3208.2,3208.1,0.15584]
[1765433202667,4.8429,3208.2,3208.1,0.15584]
[1765433212368,4.8429,3208.2,3208.1,1.2946017]
[1765433213870,3.2078,3208.2,3208.1,2.8988017]
[1765433214074,4.0302,3208.2,3208.1,2.8988017]
[1765433214370,4.0302,3208.2,3208.1,1.76004]
[1765433214676,4.8429,3208.2,3208.1,1.76004]
[1765433216180,4.0302,3208.2,3208.1,1.76004]
[1765433217976,4.8429,3208.2,3208.1,1.76004]
[1765433220774,4.8429,3208.2,3208.1,0.15584]
[1765433221777,1.5381,3207.9,3207.8,0.0071269]
[1765433222581,1.5381,3207.9,3207.8,0.1629769]
[1765433223277,4.7459,3207.9,3207.8,0.1629769]
[1765433226888,4.7459,3207.9,3207.8,0.9055769]
[1765433229294,4.7459,3207.9,3207.8,0.1629769]
[1765433232288,1.5381,3207.9,3207.8,2.7538821]
[1765433232887,4.7459,3207.9,3207.8,2.0168821]
[1765433233492,4.7459,3207.9,3207.8,2.7538821]
[1765433235496,4.7101,3208.3,3208.2,1.64293]
[1765433235801,4.7101,3208.3,3208.2,0.90593]
[1765433238499,3.2078,3208.3,3208.2,1.64293]
[1765433238699,3.9485,3208.3,3208.2,1.64293]
[1765433238901,3.2078,3208.3,3208.2,1.64293]
[1765433239997,1.50697143,3208.5,3208.4,1.64292]
[1765433240196,0.74537143,3208.5,3208.4,2.7542252]
[1765433240396,0.00467143,3208.5,3208.4,2.7542252]
[1765433240993,1.50697143,3208.5,3208.4,1.64292]
[1765433247805,0.00467143,3208.5,3208.4,1.64292]
[1765433250910,1.83657143,3208.5,3208.4,0.15582]
[1765433251114,1.8319,3208.0,3207.9,1.4882]
[1765433251420,1.8319,3208.0,3207.9,0.746]
[1765433251914,1.8319,3208.0,3207.8,1.1184321]
[1765433252110,1.395,3207.9,3207.8,2.0202821]
[1765433253712,1.395,3207.9,3207.8,0.1629769]
[1765433257422,1.395,3207.9,3207.8,1.2742821]
[1765433258218,1.395,3207.9,3207.8,0.1629769]
[1765433258423,0.4369,3208.0,3207.3,1.1113052]
[1765433258616,1.395,3207.4,3207.3,2.0131852]
[1765433259012,1.395,3207.4,3207.3,2.7553852]
[1765433259418,0.00329296,3207.4,3207.3,2.75792604]
[1765433259716,0.00329296,3207.4,3207.3,3.00088261]
[1765433259916,1.39829296,3207.4,3207.3,3.00088261]
[1765433260826,0.71489296,3207.4,3207.3,3.00088261]
[1765433261025,0.00329296,3207.4,3207.3,3.00088261]
[1765433263521,1.39829296,3207.4,3207.3,1.88957741]
[1765433264320,0.71489296,3207.4,3207.3,1.88957741]
[1765433264724,0.00329296,3207.4,3207.3,1.88957741]
[1765433266624,1.39829296,3207.4,3207.3,1.88957741]
[1765433266823,1.39829296,3207.4,3207.3,3.00088261]
[1765433267528,0.71489296,3207.4,3207.3,3.00088261]
[1765433270421,0.00329296,3207.4,3207.3,3.00088261]
[1765433271430,1.39829296,3207.4,3207.3,1.88957741]
[1765433272332,0.71489296,3207.4,3207.3,3.00088261]
[1765433272530,0.00329296,3207.4,3207.3,3.00088261]
[1765433274536,0.71489296,3207.4,3207.3,3.00088261]
[1765433274937,1.39829296,3207.4,3207.3,3.00088261]
[1765433277239,1.39829296,3207.4,3207.3,1.26972604]
[1765433277435,1.39829296,3207.4,3207.3,0.15842084]
[1765433279632,1.39829296,3207.4,3207.3,2.75552604]
[1765433280935,0.71489296,3207.4,3207.3,2.75552604]
[1765433281138,0.00329296,3207.4,3207.3,2.75552604]
[1765433281739,1.46489296,3207.4,3207.3,2.75552604]
[1765433281937,1.46489296,3207.4,3207.3,2.01572604]
[1765433282132,1.46489296,3207.4,3207.3,2.75552604]
[1765433282543,4.67269296,3207.4,3207.3,2.75552604]
[1765433282737,4.67269296,3207.4,3207.3,0.15842084]
[1765433283544,4.67269296,3207.4,3207.3,0.88122084]
[1765433283849,4.67269296,3207.4,3207.3,1.62102084]
[1765433284038,4.67269296,3207.4,3207.3,0.88122084]
[1765433284641,4.67269296,3207.4,3207.3,2.02125504]
[1765433287743,4.67269296,3207.4,3207.3,1.29845504]
[1765433288940,4.67269296,3207.4,3207.3,0.15842084]
[1765433293948,4.67269296,3207.4,3206.5,0.5379]
[1765433293949,1.4616,3206.8,3206.3,3.2078]
[1765433294150,1.4616,3206.4,3206.3,1.4626]
[1765433294351,0.7256,3206.4,3206.3,2.6026342]
[1765433294852,0.7256,3206.4,3206.3,2.84735584]
[1765433295047,0.7256,3206.4,3206.3,2.8510491]
[1765433295249,1.4616,3206.4,3206.3,2.8510491]
[1765433295554,1.4616,3206.4,3206.3,3.0069791]
[1765433299657,1.4616,3206.4,3206.3,2.76225746]
[1765433300054,1.4616,3206.4,3206.3,0.15962326]
[1765433302855,2.6016342,3206.4,3206.3,0.15962326]
[1765433303066,1.8232,3206.0,3205.9,0.24622413]
[1765433303263,3.6429,3206.5,3206.2,0.15593]
[1765433303563,1.3914,3206.3,3206.2,0.15593]
[1765433304062,1.3914,3206.3,3206.2,0.15933066]
[1765433304462,1.3914,3206.3,3206.2,1.65593066]
[1765433306464,1.3914,3206.3,3206.2,0.90703066]
[1765433307165,1.3914,3206.3,3206.2,0.15933066]
[1765433307965,1.8232,3206.0,3205.9,0.25305653]
[1765433308166,1.3914,3205.8,3205.7,4.86035]
[1765433308962,1.3914,3205.8,3205.7,1.65506207]
[1765433309663,1.3914,3205.8,3205.7,2.79509627]
[1765433309962,1.3914,3205.8,3205.7,0.90616207]
[1765433310160,1.3914,3205.8,3205.7,0.15846207]
[1765433310561,1.3914,3205.8,3205.7,0.84876207]
[1765433310757,1.3914,3205.8,3205.7,0.15846207]
[1765433310965,1.3978,3206.0,3205.9,1.52784]
[1765433311361,1.3978,3206.0,3205.9,2.6678742]
[1765433311767,1.8296,3206.0,3205.9,1.9862742]
[1765433312671,1.8296,3206.0,3205.9,2.6678742]
[1765433314175,1.8296,3206.0,3205.9,1.2959742]
[1765433314776,1.8296,3206.0,3205.9,0.15594]
[1765433316270,0.7016,3206.0,3205.9,2.6678742]
[1765433316478,3.9094,3206.1,3206.0,1.95424]
[1765433318574,3.2078,3206.1,3206.0,1.95424]
[1765433319078,3.2078,3206.1,3206.0,3.0942742]
[1765433319669,0.00467143,3206.9,3206.0,3.0942742]
[1765433319670,3.9094,3206.5,3206.4,1.3719]
[1765433319873,3.9094,3206.5,3206.4,2.5119342]
[1765433320076,3.2078,3206.5,3206.4,2.6678542]
[1765433320282,4.61027143,3206.9,3206.8,1.3719]
[1765433320477,4.61027143,3206.9,3206.8,2.6678342]
[1765433320676,3.91407143,3206.9,3206.8,2.6678342]
[1765433321382,4.61027143,3206.9,3206.8,2.6678342]
[1765433321580,3.91407143,3206.9,3206.8,2.6678342]
[1765433322385,4.61027143,3206.9,3206.8,2.6678342]
[1765433323479,1.40247143,3206.9,3206.8,2.6678342]
[1765433323980,0.70627143,3206.9,3206.8,2.6678342]
[1765433325191,0.00467143,3206.9,3206.8,2.6678342]
[1765433327681,0.00467143,3206.9,3206.8,3.8078684]
[1765433329987,3.2078,3207.3,3207.2,2.6678142]
[1765433332377,0.0046788,3207.6,3207.3,1.52778]
[1765433332579,3.2078,3207.8,3207.7,1.52776]
[1765433332785,3.2078,3207.8,3207.7,2.6677942]
[1765433333584,3.21138233,3207.8,3207.7,2.6677942]
[1765433334379,0.00358233,3207.8,3207.7,2.6677942]
[1765433334782,0.0046788,3208.1,3208.0,1.95414]
[1765433335090,0.0046788,3208.1,3208.0,4.2342084]
[1765433335891,0.00693829,3208.1,3208.0,4.23724857]
[1765433336781,3.2078,3208.3,3208.2,0.15583]
[1765433337088,1.3978,3209.0,3208.9,1.5277]
[1765433337291,4.6056,3209.0,3208.9,1.5277]
[1765433337688,4.6056,3209.0,3208.9,2.6677342]
[1765433337990,4.60957953,3209.0,3208.9,2.6677342]
[1765433340384,1.40177953,3209.0,3208.9,2.6677342]
[1765433341294,1.92077953,3209.0,3208.9,1.2958342]
[1765433343699,1.92077953,3209.0,3208.9,2.0191342]
[1765433343898,1.92077953,3209.0,3208.9,2.8726342]
[1765433344100,1.92077953,3209.0,3208.9,2.0191342]
[1765433345095,1.92077953,3209.0,3208.9,1.2958342]
[1765433345599,1.62077953,3209.0,3208.9,2.8726342]
[1765433346802,1.62077953,3209.0,3208.9,1.7326]
[1765433348999,0.00397953,3209.0,3208.9,1.7326]
[1765433349505,0.73227953,3209.0,3208.9,1.7326]
[1765433350610,1.62077953,3209.0,3208.9,1.7326]
[1765433352613,0.73227953,3209.0,3208.9,1.7326]
[1765433353115,0.00397953,3209.0,3208.9,1.7326]
[1765433353307,0.73227953,3209.0,3208.9,1.7326]
[1765433354021,1.62077953,3209.0,3208.9,1.7326]
[1765433354312,0.73227953,3209.0,3208.9,1.7326]
[1765433354609,0.73227953,3209.0,3208.9,2.84305071]
[1765433355308,2.13977953,3209.0,3208.9,0.1558]
[1765433355513,1.6168,3208.7,3208.6,0.0046788]
[1765433355709,2.73836245,3208.7,3208.6,0.1604888]
[1765433357813,2.73836245,3208.7,3208.6,1.7372888]
[1765433358212,2.73836245,3208.7,3208.6,0.8837888]
[1765433358916,2.73836245,3208.7,3208.6,0.1604888]
[1765433363617,2.73836245,3208.7,3208.6,1.8321888]
[1765433363921,2.73836245,3208.7,3208.6,0.9781888]
[1765433364422,1.6168,3208.7,3208.6,0.9781888]
[1765433364625,2.73839442,3208.7,3208.6,0.9781888]
[1765433365621,1.84989442,3208.7,3208.6,2.94263951]
[1765433365923,2.70379442,3208.7,3208.6,2.94263951]
[1765433367721,1.12159442,3208.7,3208.6,2.94263951]
[1765433367923,3.85697953,3209.0,3208.9,1.8275]
[1765433368119,4.97839594,3209.0,3208.9,2.93795071]
[1765433369226,6.64019594,3209.0,3208.9,2.93795071]
[1765433370220,6.64019594,3209.0,3208.9,1.8275]
[1765433370423,7.11659594,3209.0,3208.9,0.1558]
[1765433370927,7.11659594,3209.0,3208.9,0.9275]
[1765433371328,7.11659594,3209.0,3208.9,0.1558]
[1765433371727,3.26359594,3209.0,3208.9,0.1558]
[1765433371929,3.26359594,3209.0,3208.9,0.9275]
[1765433372329,2.14217953,3209.0,3208.9,0.9275]
[1765433372829,0.84107953,3209.0,3208.9,2.81655071]
[1765433373432,0.00397953,3209.0,3208.9,2.81655071]
[1765433377223,0.76097953,3209.0,3208.9,2.81655071]
[1765433377530,1.58567953,3209.0,3208.9,2.81655071]
[1765433380732,0.00397953,3209.0,3208.9,2.81655071]
[1765433394137,0.0046788,3209.3,3209.2,1.70608]
[1765433394341,1.5817,3210.2,3210.1,0.15574]
[1765433394545,1.5817,3210.2,3210.1,0.92744]
[1765433394844,1.5817,3210.2,3210.1,0.15574]
[1765433395037,1.5817,3209.7,3209.6,4.7581]
[1765433395237,1.58479106,3209.7,3209.6,4.7581]
[1765433395738,1.58479106,3209.7,3209.6,0.15577]
[1765433395945,1.5817,3209.1,3209.0,5.2339]
[1765433396441,1.5817,3209.1,3209.0,3.36359]
[1765433398946,1.5817,3209.1,3209.0,4.82499]
[1765433399356,0.757,3209.1,3209.0,6.36364071]
[1765433399559,1.9264,3209.5,3209.4,0.89747]
[1765433399858,1.9264,3209.5,3209.4,0.15577]
[1765433400458,1.9264,3209.5,3209.4,0.89747]
[1765433401153,1.9264,3209.5,3209.4,0.15577]
[1765433401357,1.4562,3209.1,3209.0,3.2078]
[1765433401553,1.4562,3209.1,3209.0,3.36359]
[1765433404960,1.4562,3209.1,3209.0,0.15579]
[1765433407366,5.3092,3209.1,3209.0,0.15579]
[1765433407863,5.3092,3209.1,3209.0,1.61719]
[1765433408162,5.3092,3209.1,3209.0,0.89749]
[1765433408564,5.3092,3209.1,3209.0,0.15579]
[1765433410063,4.5914,3209.1,3209.0,1.61719]
[1765433410262,5.3092,3209.1,3209.0,2.75629276]
[1765433410757,4.5914,3209.1,3209.0,3.18449276]
[1765433411362,5.3092,3209.1,3209.0,3.18449276]
[1765433412163,4.5914,3209.1,3209.0,3.18449276]
[1765433413260,0.7384,3209.1,3209.0,3.18449276]
[1765433413461,5.3092,3209.4,3209.3,0.89748]
[1765433413764,5.3092,3209.4,3209.3,1.61718]
[1765433413966,5.3092,3209.4,3209.3,0.89748]
[1765433414359,5.3092,3209.4,3209.3,0.15578]
[1765433414861,0.7384,3208.8,3208.7,2.60050276]
[1765433415664,3.853,3209.4,3209.2,0.15578]
[1765433415864,1.4562,3209.3,3209.2,0.89748]
[1765433416264,1.4562,3209.3,3209.2,1.61718]
[1765433416560,1.4562,3209.3,3209.2,0.89748]
[1765433417161,1.4562,3209.3,3209.2,0.15578]
[1765433418464,1.9022,3209.0,3208.9,1.13910276]
[1765433419056,1.9022,3209.0,3208.9,1.91440276]
[1765433419668,1.9022,3209.0,3208.9,2.82690276]
[1765433419862,1.4747,3209.0,3208.9,2.82690276]
[1765433420058,0.7384,3209.0,3208.9,2.82690276]
[1765433420260,5.3205,3209.4,3209.3,0.93108]
[1765433420464,5.3205,3209.4,3209.3,2.07018276]
[1765433421972,5.3205,3209.4,3209.3,0.15578]
[1765433422167,1.4675,3209.1,3209.0,5.1824]
[1765433422773,1.4675,3209.1,3209.0,4.7398]
[1765433422966,1.4675,3209.1,3209.0,3.2078]
[1765433423572,1.4675,3209.1,3209.0,3.36359]
[1765433423774,1.4675,3209.1,3209.0,4.13889]
[1765433424272,1.4675,3209.1,3209.0,6.47729276]
[1765433427672,1.4675,3209.1,3209.0,4.89559]
[1765433428571,1.4675,3209.1,3209.0,5.33029]
[1765433428875,5.354,3209.4,3209.3,0.7154]
[1765433429067,5.354,3209.4,3209.3,0.87118]
[1765433430269,5.354,3209.4,3209.3,0.15578]
[1765433432472,5.354,3209.4,3209.0,3.6425]
[1765433432473,1.501,3209.1,3209.0,4.6391]
[1765433433672,1.501,3209.1,3209.0,4.07899]
[1765433433969,1.501,3209.1,3209.0,0.15579]
[1765433437178,5.354,3209.1,3209.0,0.15579]
[1765433440678,5.354,3209.1,3209.0,0.11918913]
[1765433440885,1.501,3208.7,3208.6,3.2124788]
[1765433441087,1.501,3208.7,3208.6,4.6437788]
[1765433442182,0.7537,3208.7,3208.6,4.6437788]
[1765433442578,1.501,3208.7,3208.6,4.7995888]
[1765433443079,0.7537,3208.7,3208.6,4.7995888]
[1765433443779,1.501,3209.0,3208.9,1.5871]
[1765433443992,1.501,3209.0,3208.9,2.72620276]
[1765433445389,1.9222,3209.0,3208.9,0.8712]
[1765433445586,1.9222,3209.0,3208.9,0.1558]
[1765433446288,1.501,3208.7,3208.6,3.2124788]
[1765433447485,1.501,3208.7,3208.6,3.9278788]
[1765433447784,1.501,3208.7,3208.6,4.0836888]
[1765433449390,1.501,3208.7,3208.6,4.7995888]
[1765433455792,1.501,3208.7,3208.6,5.93869156]
[1765433459688,1.501,3208.7,3208.6,2.72621276]
[1765433459887,1.501,3208.7,3208.6,2.01031276]
[1765433460088,2.64010276,3208.7,3208.6,0.15581]
[1765433460291,6.49310276,3208.7,3208.2,3.2078]
[1765433460495,1.4072,3208.1,3208.0,0.15888017]
[1765433460890,1.4072,3208.1,3208.0,1.62028017]
[1765433461091,1.4072,3208.1,3208.0,2.75938293]
[1765433461687,1.4072,3208.1,3208.0,0.15888017]
[1765433461991,1.4072,3207.4,3207.3,0.86088]
[1765433462289,1.4072,3207.4,3207.3,0.15588]
[1765433462893,1.40989652,3207.4,3207.3,0.15931935]
[1765433463493,1.40989652,3207.4,3207.3,0.86431935]
[1765433463894,1.40989652,3207.4,3207.3,1.62071935]
[1765433464096,1.40989652,3207.4,3207.3,2.75982211]
[1765433465196,0.00269652,3207.4,3207.3,2.75982211]
[1765433465401,0.70459652,3207.4,3207.3,2.75982211]
[1765433465604,1.40989652,3207.4,3207.3,2.75982211]
[1765433465797,0.70459652,3207.4,3207.3,2.75982211]
[1765433466999,1.40989652,3207.4,3207.3,2.75982211]
[1765433468804,1.40989652,3207.4,3207.3,1.62071935]
[1765433474211,0.70459652,3207.4,3207.3,1.62071935]
[1765433474415,1.40989652,3207.4,3207.3,1.62071935]
[1765433474615,0.00269652,3207.4,3207.3,1.62071935]
[1765433475824,1.45079652,3207.4,3207.3,1.62071935]
[1765433476023,1.45079652,3207.4,3207.3,0.62071935]
[1765433476222,1.45079652,3207.4,3207.3,0.7843]
[1765433476419,1.45079652,3207.4,3207.3,1.5246]
[1765433477023,1.45079652,3207.4,3207.3,1.52824891]
[1765433477523,1.45079652,3207.4,3207.3,1.68412891]
[1765433479225,1.45079652,3207.4,3207.3,0.94382891]
[1765433479729,1.45079652,3207.4,3207.3,1.68412891]
[1765433481418,0.00269652,3207.4,3207.3,1.68412891]
[1765433481927,0.74939652,3207.4,3207.3,1.68412891]
[1765433482327,1.49559652,3207.4,3207.3,1.68412891]
[1765433482922,1.49559652,3207.4,3207.3,0.94382891]
[1765433484222,1.49559652,3207.4,3207.3,1.68412891]
[1765433488628,1.49559652,3207.4,3207.3,0.94382891]
[1765433488828,1.49559652,3207.4,3207.3,1.74022891]
[1765433490335,0.74939652,3207.4,3207.3,1.74022891]
[1765433490536,1.48879652,3207.4,3207.3,1.74022891]
[1765433494239,1.48879652,3207.4,3207.3,0.74022891]
[1765433494443,1.48879652,3207.4,3207.3,0.90958]
[1765433494638,1.48879652,3207.4,3207.3,0.15588]
[1765433495441,1.48879652,3207.4,3207.3,0.1596568]
[1765433496644,5.34179652,3207.4,3207.3,0.1596568]
[1765433499450,1.48879652,3207.4,3207.3,0.1596568]
[1765433502952,1.48879652,3207.4,3207.3,0.9133568]
[1765433503751,0.7844,3207.1,3207.0,3.4101788]
[1765433503952,0.7844,3207.1,3207.0,3.6078788]
[1765433504356,1.5238,3207.1,3207.0,3.6078788]
[1765433504749,1.5238,3207.1,3207.0,0.16340589]
[1765433505244,1.5238,3207.1,3207.0,0.49870589]
[1765433508750,1.5238,3207.1,3207.0,0.83400589]
[1765433509154,1.5238,3207.1,3207.0,0.49870589]
[1765433509552,1.5238,3207.1,3206.5,3.2078]
[1765433509553,1.5238,3207.1,3206.6,0.25111279]
[1765433509856,1.5238,3206.7,3206.6,0.2919]
[1765433510757,1.5238,3206.7,3206.6,0.98615688]
[1765433512056,1.5238,3206.7,3206.6,0.69425688]
[1765433512957,1.5238,3206.7,3206.6,0.99495688]
[1765433513458,1.5238,3206.7,3206.6,0.69425688]
[1765433514656,1.5238,3206.7,3206.6,0.15726188]
[1765433514863,1.5238,3206.6,3206.5,3.2078]
[1765433515356,1.5238,3206.4,3206.3,0.4355088]
[1765433520863,0.4908,3206.5,3206.4,0.96752]
[1765433521561,0.0046788,3206.7,3206.6,0.94951]
[1765433521767,0.0046788,3206.7,3206.6,2.06103856]
[1765433525067,0.8350788,3206.7,3206.6,2.06103856]
[1765433525261,0.0046788,3206.7,3206.6,2.06103856]
[1765433530474,0.83309652,3207.4,3207.3,0.82558]
[1765433530675,0.00269652,3207.4,3207.3,1.96533738]
[1765433535380,1.69449652,3207.4,3207.3,1.96533738]
[1765433535678,0.83309652,3207.4,3207.3,1.96533738]
[1765433536181,0.00269652,3207.4,3207.3,1.96533738]
[1765433539083,0.00269652,3207.4,3207.3,5.17313738]
[1765433540180,3.6355,3208.0,3207.9,0.63065]
[1765433541281,3.63859892,3208.0,3207.9,0.63334652]
[1765433544290,4.44919892,3208.0,3207.9,0.63334652]
[1765433546285,5.29079892,3208.0,3207.9,0.63334652]
[1765433547094,4.44919892,3208.0,3207.9,0.63334652]
[1765433547494,0.43079892,3208.0,3207.9,0.63334652]
[1765433547694,0.00309892,3208.0,3207.9,1.7731039]
[1765433548495,0.45799892,3208.0,3207.9,0.63334652]
[1765433548894,1.97389892,3208.0,3207.9,0.15854652]
[1765433549195,1.5159,3207.4,3207.3,3.52708]
[1765433550295,1.5159,3207.4,3207.3,4.66683738]
[1765433551097,1.5159,3207.4,3207.3,4.83023738]
[1765433551998,1.5159,3207.4,3207.3,4.66683738]
[1765433555199,1.5159,3207.4,3207.3,4.83103738]
[1765433556697,1.5159,3207.4,3207.3,4.66683738]
[1765433557000,1.5159,3207.4,3207.3,4.50343738]
[1765433557197,1.5159,3207.4,3207.3,4.62693738]
[1765433558404,4.6115,3207.9,3207.8,0.37885]
[1765433558606,5.3689,3207.9,3207.8,1.51860738]
[1765433558790,3.66579892,3208.0,3207.9,0.37085]
[1765433560097,0.45799892,3208.0,3207.9,0.37085]
[1765433562404,1.21649892,3208.0,3207.9,0.37085]
[1765433562605,1.97389892,3208.0,3207.9,0.37085]
[1765433563201,1.97389892,3208.0,3207.9,0.26335]
[1765433564002,1.97389892,3208.0,3207.9,1.36330738]
[1765433564697,1.97389892,3208.0,3207.9,1.43110738]
[1765433565096,1.97389892,3208.0,3207.9,1.36330738]
[1765433566800,1.97389892,3208.0,3207.9,1.42320738]
[1765433567509,1.97389892,3208.0,3207.9,1.36330738]
[1765433569407,1.97389892,3208.0,3207.9,1.39980738]
[1765433573813,1.97389892,3208.0,3207.9,1.36330738]
[1765433579512,1.21649892,3208.0,3207.9,1.36330738]
[1765433579914,1.96689892,3208.0,3207.9,1.36330738]
[1765433580516,5.17469892,3208.0,3207.9,1.29560738]